[Event "Titled Tuesday Blitz March 29 Late 2022"]
[White "Almedina Ortiz, Edgardo J."]
[Black "Suder, Jakub"]
[WhiteFideId "3100197"]
[BlackFideId "1195310"]
[WhiteElo "2217"]
[BlackElo "2058"]
[Result "0-1"]
[Round "03"]
[TimeControl "180+1"]
[Date "2022.03.30"]
[WhiteClock "0:00:11"]
[BlackClock "0:01:46"]

1. d4 {[%clk 0:03:00]}  d5 {[%clk 0:02:59]} 2. c4 {[%clk 0:03:00]}  e6 {[%clk 0:03:00]} 3. Nf3 {[%clk 0:03:00]}  Nf6 {[%clk 0:02:59]} 4. g3 {[%clk 0:03:00]}  Be7 {[%clk 0:02:59]} 5. Bg2 {[%clk 0:03:00]}  O-O {[%clk 0:02:59]} 6. O-O {[%clk 0:03:01]}  dxc4 {[%clk 0:03:00]} 7. Qc2 {[%clk 0:03:01]}  b5 {[%clk 0:03:01]} 8. b3 {[%clk 0:02:32]}  cxb3 {[%clk 0:02:53]} 9. axb3 {[%clk 0:02:33]}  Bb7 {[%clk 0:02:53]} 10. Ba3 {[%clk 0:02:30]}  a6 {[%clk 0:02:51]} 11. Bxe7 {[%clk 0:02:26]}  Qxe7 {[%clk 0:02:51]} 12. Rc1 {[%clk 0:02:25]}  Nc6 {[%clk 0:02:50]} 13. e3 {[%clk 0:02:20]}  Rac8 {[%clk 0:02:49]} 14. Nbd2 {[%clk 0:02:17]}  Nd7 {[%clk 0:02:42]} 15. Ne1 {[%clk 0:02:08]}  Nb4 {[%clk 0:02:37]} 16. Qc3 {[%clk 0:02:06]}  Bxg2 {[%clk 0:02:38]} 17. Kxg2 {[%clk 0:02:06]}  Nb6 {[%clk 0:02:32]} 18. Ne4 {[%clk 0:02:01]}  N6d5 {[%clk 0:02:32]} 19. Qd2 {[%clk 0:01:56]}  e5 {[%clk 0:02:27]} 20. Nc5 {[%clk 0:01:50]}  exd4 {[%clk 0:02:27]} 21. Qxd4 {[%clk 0:01:48]}  Rfd8 {[%clk 0:02:17]} 22. Nxa6 {[%clk 0:01:03]}  Nxa6 {[%clk 0:02:16]} 23. Rxa6 {[%clk 0:01:02]}  Nb4 {[%clk 0:02:08]} 24. Qa1 {[%clk 0:00:52]}  Nxa6 {[%clk 0:02:06]} 25. Qxa6 {[%clk 0:00:53]}  Qd7 {[%clk 0:02:02]} 26. Rc6 {[%clk 0:00:48]}  h5 {[%clk 0:02:00]} 27. h4 {[%clk 0:00:47]}  Rb8 {[%clk 0:01:57]} 28. Nf3 {[%clk 0:00:29]}  b4 {[%clk 0:01:57]} 29. Nd4 {[%clk 0:00:28]}  Qd5+ {[%clk 0:01:54]} 30. Kh2 {[%clk 0:00:26]}  Rd6 {[%clk 0:01:54]} 31. Rxd6 {[%clk 0:00:23]}  Qxd6 {[%clk 0:01:54]} 32. Qe2 {[%clk 0:00:20]}  g6 {[%clk 0:01:51]} 33. Qc4 {[%clk 0:00:19]}  Re8 {[%clk 0:01:50]} 34. Kg2 {[%clk 0:00:16]}  Re5 {[%clk 0:01:47]} 35. Qa6 {[%clk 0:00:11]}  Qxa6 {[%clk 0:01:46]} 0-1


[Site "https://www.chess.com"]

[Event "Titled Tuesday Blitz March 29 Late 2022"]
[White "Babazada, Khazar"]
[Black "Al-Tarboush, Ward"]
[WhiteFideId "13413554"]
[BlackFideId "7601450"]
[WhiteElo "2418"]
[BlackElo "2276"]
[Result "1-0"]
[Round "03"]
[TimeControl "180+1"]
[Date "2022.03.29"]
[WhiteClock "0:00:11"]
[BlackClock "0:00:11"]

1. Nf3 {[%clk 0:03:00]}  d5 {[%clk 0:02:59]} 2. g3 {[%clk 0:03:00]}  Nf6 {[%clk 0:02:59]} 3. Bg2 {[%clk 0:03:00]}  c6 {[%clk 0:02:59]} 4. d3 {[%clk 0:02:59]}  Bf5 {[%clk 0:02:59]} 5. O-O {[%clk 0:02:58]}  e6 {[%clk 0:03:00]} 6. Nbd2 {[%clk 0:02:57]}  h6 {[%clk 0:03:00]} 7. b3 {[%clk 0:02:55]}  Nbd7 {[%clk 0:03:00]} 8. Bb2 {[%clk 0:02:55]}  Be7 {[%clk 0:03:00]} 9. Re1 {[%clk 0:02:55]}  O-O {[%clk 0:02:49]} 10. e4 {[%clk 0:02:55]}  Bg6 {[%clk 0:02:49]} 11. Qe2 {[%clk 0:02:54]}  Qc7 {[%clk 0:02:47]} 12. Rad1 {[%clk 0:02:35]}  a5 {[%clk 0:02:45]} 13. a4 {[%clk 0:02:34]}  b5 {[%clk 0:02:43]} 14. exd5 {[%clk 0:02:29]}  Nxd5 {[%clk 0:02:39]} 15. axb5 {[%clk 0:02:03]}  cxb5 {[%clk 0:02:40]} 16. c4 {[%clk 0:02:04]}  Nb4 {[%clk 0:02:38]} 17. Ne4 {[%clk 0:02:04]}  a4 {[%clk 0:02:33]} 18. bxa4 {[%clk 0:02:05]}  bxa4 {[%clk 0:02:32]} 19. Ba1 {[%clk 0:02:01]}  a3 {[%clk 0:02:30]} 20. Nd4 {[%clk 0:02:01]}  Qa5 {[%clk 0:01:40]} 21. Nc3 {[%clk 0:01:40]}  Rac8 {[%clk 0:01:34]} 22. Nxe6 {[%clk 0:01:38]}  Rfe8 {[%clk 0:01:22]} 23. Nf4 {[%clk 0:00:50]}  Bf6 {[%clk 0:01:02]} 24. Qxe8+ {[%clk 0:00:49]}  Rxe8 {[%clk 0:01:02]} 25. Rxe8+ {[%clk 0:00:50]}  Kh7 {[%clk 0:01:03]} 26. Nxg6 {[%clk 0:00:46]}  fxg6 {[%clk 0:01:00]} 27. Be4 {[%clk 0:00:43]}  Nc2 {[%clk 0:00:53]} 28. d4 {[%clk 0:00:24]}  Nxa1 {[%clk 0:00:50]} 29. Nd5 {[%clk 0:00:24]}  Bg5 {[%clk 0:00:15]} 30. h4 {[%clk 0:00:21]}  Nf6 {[%clk 0:00:13]} 31. Nxf6+ {[%clk 0:00:10]}  Bxf6 {[%clk 0:00:14]} 32. c5 {[%clk 0:00:11]}  Nb3 {[%clk 0:00:11]} 33. h5 {[%clk 0:00:11]} 1-0


[Site "https://www.chess.com"]

[Event "Titled Tuesday Blitz March 29 Late 2022"]
[White "Baches Garcia, Guillermo"]
[Black "Ardila, Oscar Humberto"]
[WhiteFideId "2209764"]
[BlackFideId "4404742"]
[WhiteElo "2485"]
[BlackElo "1966"]
[Result "1/2-1/2"]
[Round "03"]
[TimeControl "180+1"]
[Date "2022.03.30"]
[WhiteClock "0:00:10"]
[BlackClock "0:00:35"]

1. e4 {[%clk 0:03:00]}  e5 {[%clk 0:02:59]} 2. Nf3 {[%clk 0:03:01]}  Nf6 {[%clk 0:02:59]} 3. Nc3 {[%clk 0:02:59]}  Nc6 {[%clk 0:02:59]} 4. d4 {[%clk 0:03:00]}  exd4 {[%clk 0:02:59]} 5. Nxd4 {[%clk 0:03:00]}  Bb4 {[%clk 0:02:59]} 6. Nxc6 {[%clk 0:03:01]}  bxc6 {[%clk 0:03:00]} 7. Bd3 {[%clk 0:03:02]}  d5 {[%clk 0:03:00]} 8. Bd2 {[%clk 0:03:02]}  O-O {[%clk 0:03:00]} 9. O-O {[%clk 0:03:02]}  Re8 {[%clk 0:03:00]} 10. Nxd5 {[%clk 0:03:02]}  Nxd5 {[%clk 0:02:50]} 11. exd5 {[%clk 0:03:00]}  Bxd2 {[%clk 0:02:49]} 12. Qxd2 {[%clk 0:03:00]}  Qxd5 {[%clk 0:02:49]} 13. Rfe1 {[%clk 0:02:50]}  Be6 {[%clk 0:02:47]} 14. Re3 {[%clk 0:02:40]}  Rab8 {[%clk 0:02:45]} 15. b3 {[%clk 0:02:38]}  Qg5 {[%clk 0:02:28]} 16. Qc3 {[%clk 0:02:30]}  Bd5 {[%clk 0:02:21]} 17. Rg3 {[%clk 0:02:29]}  Qe5 {[%clk 0:02:21]} 18. Qxe5 {[%clk 0:02:19]}  Rxe5 {[%clk 0:02:20]} 19. f4 {[%clk 0:02:15]}  Re7 {[%clk 0:02:16]} 20. Kf2 {[%clk 0:02:13]}  Rbe8 {[%clk 0:02:15]} 21. Rd1 {[%clk 0:02:06]}  f6 {[%clk 0:02:05]} 22. Rd2 {[%clk 0:01:53]}  a5 {[%clk 0:01:55]} 23. a4 {[%clk 0:01:48]}  h6 {[%clk 0:01:47]} 24. Bg6 {[%clk 0:01:42]}  Bf7 {[%clk 0:01:46]} 25. Bxf7+ {[%clk 0:01:33]}  Kxf7 {[%clk 0:01:46]} 26. Rc3 {[%clk 0:01:33]}  Re6 {[%clk 0:01:44]} 27. Rc5 {[%clk 0:01:32]}  Re4 {[%clk 0:01:39]} 28. g3 {[%clk 0:01:28]}  g5 {[%clk 0:01:38]} 29. fxg5 {[%clk 0:01:19]}  hxg5 {[%clk 0:01:38]} 30. Rxc6 {[%clk 0:01:14]}  R8e7 {[%clk 0:01:37]} 31. Rc5 {[%clk 0:01:09]}  Re1 {[%clk 0:01:19]} 32. Rxc7 {[%clk 0:00:57]}  Re2+ {[%clk 0:01:13]} 33. Rxe2 {[%clk 0:00:54]}  Rxc7 {[%clk 0:01:13]} 34. Ke3 {[%clk 0:00:52]}  Ke6 {[%clk 0:01:13]} 35. Kd4+ {[%clk 0:00:51]}  Kd6 {[%clk 0:01:13]} 36. c4 {[%clk 0:00:49]}  Rb7 {[%clk 0:01:13]} 37. c5+ {[%clk 0:00:39]}  Kd7 {[%clk 0:01:12]} 38. Kc4 {[%clk 0:00:34]}  Rb4+ {[%clk 0:01:04]} 39. Kd5 {[%clk 0:00:34]}  Rxb3 {[%clk 0:01:01]} 40. c6+ {[%clk 0:00:34]}  Kd8 {[%clk 0:00:55]} 41. Kd6 {[%clk 0:00:23]}  Rd3+ {[%clk 0:00:53]} 42. Ke6 {[%clk 0:00:22]}  Rf3 {[%clk 0:00:52]} 43. Rc2 {[%clk 0:00:18]}  Kc7 {[%clk 0:00:52]} 44. h4 {[%clk 0:00:18]}  gxh4 {[%clk 0:00:51]} 45. gxh4 {[%clk 0:00:17]}  Rf4 {[%clk 0:00:51]} 46. h5 {[%clk 0:00:17]}  Rxa4 {[%clk 0:00:51]} 47. Kxf6 {[%clk 0:00:15]}  Rh4 {[%clk 0:00:50]} 48. Kg6 {[%clk 0:00:15]}  a4 {[%clk 0:00:49]} 49. h6 {[%clk 0:00:15]}  a3 {[%clk 0:00:49]} 50. h7 {[%clk 0:00:15]}  Rh3 {[%clk 0:00:43]} 51. Rg2 {[%clk 0:00:14]}  Kxc6 {[%clk 0:00:37]} 52. Kg7 {[%clk 0:00:14]}  Kb5 {[%clk 0:00:34]} 53. h8=Q {[%clk 0:00:12]}  Rxh8 {[%clk 0:00:34]} 54. Kxh8 {[%clk 0:00:13]}  Kb4 {[%clk 0:00:34]} 55. Kg7 {[%clk 0:00:13]}  Kb3 {[%clk 0:00:35]} 56. Kf6 {[%clk 0:00:13]}  a2 {[%clk 0:00:35]} 57. Rxa2 {[%clk 0:00:10]}  Kxa2 {[%clk 0:00:35]} 1/2-1/2


[Site "https://www.chess.com"]

[Event "Titled Tuesday Blitz March 29 Late 2022"]
[White "Bilan, Danila"]
[Black "Burke, Paul"]
[WhiteFideId "24161918"]
[BlackFideId "2605767"]
[WhiteElo "2164"]
[BlackElo "1863"]
[Result "1-0"]
[Round "03"]
[TimeControl "180+1"]
[Date "2022.03.30"]
[WhiteClock "0:01:54"]
[BlackClock "0:01:33"]

1. d4 {[%clk 0:03:00]}  Nf6 {[%clk 0:02:59]} 2. Nf3 {[%clk 0:03:00]}  d6 {[%clk 0:02:58]} 3. Bg5 {[%clk 0:02:58]}  g6 {[%clk 0:02:58]} 4. c3 {[%clk 0:02:59]}  Bg7 {[%clk 0:02:58]} 5. Nbd2 {[%clk 0:02:59]}  h6 {[%clk 0:02:58]} 6. Bh4 {[%clk 0:02:59]}  O-O {[%clk 0:02:58]} 7. e4 {[%clk 0:03:00]}  Nc6 {[%clk 0:02:58]} 8. Be2 {[%clk 0:02:58]}  Bg4 {[%clk 0:02:57]} 9. O-O {[%clk 0:02:58]}  Bxf3 {[%clk 0:02:57]} 10. Bxf3 {[%clk 0:02:55]}  e5 {[%clk 0:02:56]} 11. dxe5 {[%clk 0:02:53]}  Nxe5 {[%clk 0:02:55]} 12. Be2 {[%clk 0:02:53]}  Qd7 {[%clk 0:02:43]} 13. f4 {[%clk 0:02:47]}  Nc6 {[%clk 0:02:43]} 14. Qc2 {[%clk 0:02:48]}  Rfe8 {[%clk 0:02:27]} 15. Rae1 {[%clk 0:02:45]}  Rad8 {[%clk 0:02:24]} 16. Bb5 {[%clk 0:02:36]}  a6 {[%clk 0:02:22]} 17. Bc4 {[%clk 0:02:25]}  b5 {[%clk 0:02:20]} 18. Bd3 {[%clk 0:02:24]}  Rc8 {[%clk 0:02:01]} 19. a4 {[%clk 0:02:21]}  b4 {[%clk 0:01:59]} 20. Bxa6 {[%clk 0:02:19]}  bxc3 {[%clk 0:01:52]} 21. Bxc8 {[%clk 0:02:09]}  Qxc8 {[%clk 0:01:51]} 22. bxc3 {[%clk 0:02:09]}  Qa8 {[%clk 0:01:41]} 23. Qd3 {[%clk 0:01:56]}  Qxa4 {[%clk 0:01:33]} 24. Ra1 {[%clk 0:01:54]} 1-0


[Site "https://www.chess.com"]

[Event "Titled Tuesday Blitz March 29 Late 2022"]
[White "Bluebaum, Matthias"]
[Black "Yanchenko, Roman"]
[WhiteFideId "24651516"]
[BlackFideId "4137329"]
[WhiteElo "2550"]
[BlackElo "2514"]
[Result "1-0"]
[Round "03"]
[TimeControl "180+1"]
[Date "2022.03.29"]
[WhiteClock "0:01:39"]
[BlackClock "0:00:04"]

1. b3 {[%clk 0:03:00]}  e5 {[%clk 0:02:59]} 2. Bb2 {[%clk 0:03:00]}  Nc6 {[%clk 0:02:59]} 3. e3 {[%clk 0:03:01]}  Nf6 {[%clk 0:02:59]} 4. Nf3 {[%clk 0:03:02]}  d6 {[%clk 0:02:59]} 5. d4 {[%clk 0:03:02]}  exd4 {[%clk 0:02:59]} 6. Nxd4 {[%clk 0:03:03]}  Bd7 {[%clk 0:02:58]} 7. c4 {[%clk 0:03:02]}  g6 {[%clk 0:02:57]} 8. g3 {[%clk 0:03:02]}  Bg7 {[%clk 0:02:57]} 9. Bg2 {[%clk 0:03:03]}  O-O {[%clk 0:02:57]} 10. O-O {[%clk 0:03:04]}  Qc8 {[%clk 0:02:57]} 11. Re1 {[%clk 0:03:02]}  Nxd4 {[%clk 0:02:56]} 12. Qxd4 {[%clk 0:03:01]}  Bc6 {[%clk 0:02:34]} 13. Nc3 {[%clk 0:03:00]}  Ne4 {[%clk 0:02:12]} 14. Nd5 {[%clk 0:02:51]}  Bxd4 {[%clk 0:02:00]} 15. Ne7+ {[%clk 0:02:50]}  Kg7 {[%clk 0:02:00]} 16. Bxd4+ {[%clk 0:02:50]}  f6 {[%clk 0:01:43]} 17. Nxc8 {[%clk 0:02:50]}  Raxc8 {[%clk 0:01:34]} 18. b4 {[%clk 0:02:49]}  b6 {[%clk 0:01:28]} 19. h4 {[%clk 0:02:48]}  Ba8 {[%clk 0:01:28]} 20. g4 {[%clk 0:02:44]}  Nd2 {[%clk 0:01:25]} 21. g5 {[%clk 0:02:36]}  Bxg2 {[%clk 0:01:12]} 22. Bxf6+ {[%clk 0:02:31]}  Kf7 {[%clk 0:01:11]} 23. Kxg2 {[%clk 0:02:31]}  Nxc4 {[%clk 0:01:11]} 24. Rac1 {[%clk 0:02:31]}  b5 {[%clk 0:01:02]} 25. e4 {[%clk 0:02:31]}  a5 {[%clk 0:00:55]} 26. a4 {[%clk 0:02:27]}  axb4 {[%clk 0:00:52]} 27. axb5 {[%clk 0:02:28]}  Na3 {[%clk 0:00:52]} 28. e5 {[%clk 0:02:21]}  Rfe8 {[%clk 0:00:18]} 29. exd6 {[%clk 0:01:48]}  Rxe1 {[%clk 0:00:17]} 30. Rxc7+ {[%clk 0:01:39]}  Ke8 {[%clk 0:00:04]} 31. d7+ {[%clk 0:01:39]} 1-0


[Site "https://www.chess.com"]

[Event "Titled Tuesday Blitz March 29 Late 2022"]
[White "Bordi, Kevin"]
[Black "Plotnikov, Pavel"]
[WhiteFideId "621862"]
[BlackFideId "4170342"]
[WhiteElo "2800"]
[BlackElo "2298"]
[Result "1-0"]
[Round "03"]
[TimeControl "180+1"]
[Date "2022.03.30"]
[WhiteClock "0:02:40"]
[BlackClock "0:01:06"]

1. e4 {[%clk 0:03:00]}  e6 {[%clk 0:02:59]} 2. d4 {[%clk 0:03:00]}  d5 {[%clk 0:02:59]} 3. Nd2 {[%clk 0:03:01]}  Be7 {[%clk 0:02:59]} 4. Ngf3 {[%clk 0:03:00]}  dxe4 {[%clk 0:02:59]} 5. Nxe4 {[%clk 0:03:01]}  Nf6 {[%clk 0:03:00]} 6. Ng3 {[%clk 0:03:01]}  c5 {[%clk 0:02:57]} 7. c3 {[%clk 0:02:59]}  Nc6 {[%clk 0:02:57]} 8. Be3 {[%clk 0:02:59]}  Nd5 {[%clk 0:02:52]} 9. Bd2 {[%clk 0:02:56]}  cxd4 {[%clk 0:02:46]} 10. cxd4 {[%clk 0:02:56]}  Qb6 {[%clk 0:02:46]} 11. Bc3 {[%clk 0:02:53]}  O-O {[%clk 0:02:38]} 12. Bd3 {[%clk 0:02:52]}  Nf4 {[%clk 0:02:30]} 13. Bf1 {[%clk 0:02:51]}  e5 {[%clk 0:02:23]} 14. Nxe5 {[%clk 0:02:47]}  Nxe5 {[%clk 0:02:21]} 15. dxe5 {[%clk 0:02:48]}  Bc5 {[%clk 0:01:57]} 16. Qf3 {[%clk 0:02:48]}  Ne6 {[%clk 0:01:35]} 17. Bd3 {[%clk 0:02:47]}  Nd4 {[%clk 0:01:29]} 18. Qe4 {[%clk 0:02:47]}  g6 {[%clk 0:01:17]} 19. O-O {[%clk 0:02:45]}  Re8 {[%clk 0:01:14]} 20. b4 {[%clk 0:02:43]}  Bf5 {[%clk 0:01:06]} 21. Nxf5 {[%clk 0:02:40]}  gxf5 {[%clk 0:01:06]} 22. bxc5 {[%clk 0:02:39]}  fxe4 {[%clk 0:01:06]} 23. cxb6 {[%clk 0:02:40]}  exd3 {[%clk 0:01:06]} 24. Bxd4 {[%clk 0:02:40]} 1-0


[Site "https://www.chess.com"]

[Event "Titled Tuesday Blitz March 29 Late 2022"]
[White "Bryakin, Mikhail"]
[Black "Chabris, Christopher"]
[WhiteFideId "4165314"]
[BlackFideId "2005263"]
[WhiteElo "2417"]
[BlackElo "2302"]
[Result "1-0"]
[Round "03"]
[TimeControl "180+1"]
[Date "2022.03.30"]
[WhiteClock "0:01:57"]
[BlackClock "0:00:01"]

1. e4 {[%clk 0:02:59]}  c5 {[%clk 0:02:59]} 2. d4 {[%clk 0:02:57]}  cxd4 {[%clk 0:02:58]} 3. c3 {[%clk 0:02:57]}  e5 {[%clk 0:02:58]} 4. cxd4 {[%clk 0:02:56]}  exd4 {[%clk 0:02:54]} 5. Nf3 {[%clk 0:02:56]}  Nc6 {[%clk 0:02:52]} 6. Nxd4 {[%clk 0:02:56]}  Bb4+ {[%clk 0:02:50]} 7. Bd2 {[%clk 0:02:55]}  Bxd2+ {[%clk 0:02:46]} 8. Qxd2 {[%clk 0:02:56]}  Nf6 {[%clk 0:02:41]} 9. Nc3 {[%clk 0:02:56]}  O-O {[%clk 0:02:38]} 10. O-O-O {[%clk 0:02:56]}  Re8 {[%clk 0:02:19]} 11. f3 {[%clk 0:02:55]}  Qb6 {[%clk 0:02:12]} 12. Nf5 {[%clk 0:02:36]}  Ne5 {[%clk 0:01:32]} 13. Nd6 {[%clk 0:02:21]}  Rf8 {[%clk 0:01:17]} 14. Kb1 {[%clk 0:02:20]}  Ne8 {[%clk 0:01:10]} 15. h4 {[%clk 0:02:20]}  Nxd6 {[%clk 0:01:06]} 16. Qxd6 {[%clk 0:02:20]}  Qxd6 {[%clk 0:01:06]} 17. Rxd6 {[%clk 0:02:21]}  f6 {[%clk 0:01:06]} 18. h5 {[%clk 0:02:21]}  Nf7 {[%clk 0:01:05]} 19. Rd2 {[%clk 0:02:20]}  d6 {[%clk 0:01:01]} 20. Bc4 {[%clk 0:02:21]}  Kh8 {[%clk 0:00:57]} 21. Bxf7 {[%clk 0:02:20]}  Rxf7 {[%clk 0:00:57]} 22. Rxd6 {[%clk 0:02:21]}  Bd7 {[%clk 0:00:32]} 23. Rhd1 {[%clk 0:01:58]}  Bc6 {[%clk 0:00:31]} 24. Rd8+ {[%clk 0:01:57]}  Rf8 {[%clk 0:00:31]} 25. Rxa8 {[%clk 0:01:57]}  Rxa8 {[%clk 0:00:31]} 26. b4 {[%clk 0:01:57]}  a6 {[%clk 0:00:26]} 27. a4 {[%clk 0:01:56]}  b5 {[%clk 0:00:23]} 28. a5 {[%clk 0:01:56]}  Kg8 {[%clk 0:00:20]} 29. Rd6 {[%clk 0:01:55]}  Rc8 {[%clk 0:00:19]} 30. Kc2 {[%clk 0:01:56]}  Kf7 {[%clk 0:00:19]} 31. Kd3 {[%clk 0:01:56]}  Ke7 {[%clk 0:00:19]} 32. Rd4 {[%clk 0:01:57]}  Ke6 {[%clk 0:00:17]} 33. g4 {[%clk 0:01:57]}  g6 {[%clk 0:00:17]} 34. Ne2 {[%clk 0:01:56]}  f5 {[%clk 0:00:16]} 35. exf5+ {[%clk 0:01:55]}  gxf5 {[%clk 0:00:16]} 36. Nf4+ {[%clk 0:01:56]}  Ke5 {[%clk 0:00:15]} 37. g5 {[%clk 0:01:56]}  Bb7 {[%clk 0:00:12]} 38. Ke3 {[%clk 0:01:55]}  Rc3+ {[%clk 0:00:11]} 39. Nd3+ {[%clk 0:01:56]}  Ke6 {[%clk 0:00:11]} 40. Kf4 {[%clk 0:01:53]}  Rc4 {[%clk 0:00:10]} 41. Nc5+ {[%clk 0:01:54]}  Ke7 {[%clk 0:00:08]} 42. Rxc4 {[%clk 0:01:54]}  bxc4 {[%clk 0:00:08]} 43. Nxb7 {[%clk 0:01:55]}  c3 {[%clk 0:00:08]} 44. Ke3 {[%clk 0:01:56]}  f4+ {[%clk 0:00:06]} 45. Kd3 {[%clk 0:01:57]}  Kd7 {[%clk 0:00:02]} 46. Nc5+ {[%clk 0:01:56]}  Kc6 {[%clk 0:00:01]} 47. Kxc3 {[%clk 0:01:57]} 1-0


[Site "https://www.chess.com"]

[Event "Titled Tuesday Blitz March 29 Late 2022"]
[White "Buchenau, Frank"]
[Black "Najer, Evgeniy"]
[WhiteFideId "4604350"]
[BlackFideId "4118987"]
[WhiteElo "2193"]
[BlackElo "2562"]
[Result "1-0"]
[Round "03"]
[TimeControl "180+1"]
[Date "2022.03.30"]
[WhiteClock "0:00:06"]
[BlackClock "0:00:01"]

1. e4 {[%clk 0:03:00]}  c6 {[%clk 0:02:59]} 2. Nf3 {[%clk 0:03:00]}  d5 {[%clk 0:02:59]} 3. Nc3 {[%clk 0:03:00]}  Bg4 {[%clk 0:02:58]} 4. d4 {[%clk 0:03:00]}  e6 {[%clk 0:02:57]} 5. Bd3 {[%clk 0:02:59]}  Nd7 {[%clk 0:02:54]} 6. h3 {[%clk 0:02:59]}  Bh5 {[%clk 0:02:52]} 7. O-O {[%clk 0:02:59]}  Be7 {[%clk 0:02:52]} 8. Bf4 {[%clk 0:02:53]}  Ngf6 {[%clk 0:02:45]} 9. e5 {[%clk 0:02:50]}  Ng8 {[%clk 0:02:45]} 10. g4 {[%clk 0:02:48]}  Bg6 {[%clk 0:02:44]} 11. Ne2 {[%clk 0:02:38]}  Qb6 {[%clk 0:02:38]} 12. Rb1 {[%clk 0:02:34]}  Bxd3 {[%clk 0:02:31]} 13. Qxd3 {[%clk 0:02:35]}  h5 {[%clk 0:02:31]} 14. Kg2 {[%clk 0:02:34]}  Nh6 {[%clk 0:02:28]} 15. Bxh6 {[%clk 0:02:28]}  hxg4 {[%clk 0:02:19]} 16. hxg4 {[%clk 0:02:26]}  Rxh6 {[%clk 0:02:09]} 17. Rh1 {[%clk 0:02:23]}  Rxh1 {[%clk 0:02:09]} 18. Rxh1 {[%clk 0:02:24]}  Qxb2 {[%clk 0:02:06]} 19. Rh8+ {[%clk 0:02:18]}  Bf8 {[%clk 0:01:43]} 20. Ng5 {[%clk 0:02:15]}  Qb4 {[%clk 0:01:12]} 21. Qf3 {[%clk 0:01:36]}  Qe7 {[%clk 0:01:10]} 22. Qf4 {[%clk 0:01:33]}  f6 {[%clk 0:01:00]} 23. Nf3 {[%clk 0:01:15]}  O-O-O {[%clk 0:00:58]} 24. Ng3 {[%clk 0:01:08]}  fxe5 {[%clk 0:00:39]} 25. dxe5 {[%clk 0:01:07]}  Qe8 {[%clk 0:00:32]} 26. Ng5 {[%clk 0:00:57]}  Qg6 {[%clk 0:00:31]} 27. Nh5 {[%clk 0:00:43]}  Be7 {[%clk 0:00:30]} 28. Rxd8+ {[%clk 0:00:39]}  Bxd8 {[%clk 0:00:28]} 29. Nf7 {[%clk 0:00:36]}  Be7 {[%clk 0:00:28]} 30. c3 {[%clk 0:00:33]}  Kc7 {[%clk 0:00:27]} 31. a4 {[%clk 0:00:32]}  a5 {[%clk 0:00:26]} 32. Nh8 {[%clk 0:00:26]}  Qg5 {[%clk 0:00:25]} 33. Qxg5 {[%clk 0:00:23]}  Bxg5 {[%clk 0:00:24]} 34. Nxg7 {[%clk 0:00:24]}  Nc5 {[%clk 0:00:20]} 35. Nf7 {[%clk 0:00:20]}  Bd2 {[%clk 0:00:18]} 36. Ne8+ {[%clk 0:00:14]}  Kd7 {[%clk 0:00:17]} 37. Nf6+ {[%clk 0:00:15]}  Ke7 {[%clk 0:00:17]} 38. Nh8 {[%clk 0:00:15]}  b5 {[%clk 0:00:16]} 39. axb5 {[%clk 0:00:14]}  cxb5 {[%clk 0:00:15]} 40. f4 {[%clk 0:00:14]}  a4 {[%clk 0:00:15]} 41. g5 {[%clk 0:00:14]}  a3 {[%clk 0:00:13]} 42. g6 {[%clk 0:00:14]}  Kf8 {[%clk 0:00:13]} 43. Nh5 {[%clk 0:00:13]}  a2 {[%clk 0:00:11]} 44. g7+ {[%clk 0:00:13]}  Kg8 {[%clk 0:00:10]} 45. Ng6 {[%clk 0:00:13]}  Kf7 {[%clk 0:00:09]} 46. Ne7 {[%clk 0:00:12]}  a1=Q {[%clk 0:00:07]} 47. g8=Q+ {[%clk 0:00:12]}  Kxe7 {[%clk 0:00:07]} 48. Qg7+ {[%clk 0:00:12]}  Kd8 {[%clk 0:00:07]} 49. Nf6 {[%clk 0:00:11]}  Qxc3 {[%clk 0:00:05]} 50. Qf8+ {[%clk 0:00:10]}  Kc7 {[%clk 0:00:05]} 51. Qd6+ {[%clk 0:00:10]}  Kb7 {[%clk 0:00:05]} 52. Ne8 {[%clk 0:00:08]}  Na6 {[%clk 0:00:03]} 53. Qd7+ {[%clk 0:00:07]}  Kb6 {[%clk 0:00:03]} 54. Qxe6+ {[%clk 0:00:07]}  Ka5 {[%clk 0:00:03]} 55. Nd6 {[%clk 0:00:06]}  Bxf4 {[%clk 0:00:02]} 56. Nb7+ {[%clk 0:00:06]}  Ka4 {[%clk 0:00:01]} 57. Qxd5 {[%clk 0:00:06]} 1-0


[Site "https://www.chess.com"]

[Event "Titled Tuesday Blitz March 29 Late 2022"]
[White "Cardoso Cardoso, Jose Gabriel"]
[Black "Andreikin, Dmitry"]
[WhiteFideId "4430492"]
[BlackFideId "4158814"]
[WhiteElo "2451"]
[BlackElo "2736"]
[Result "0-1"]
[Round "03"]
[TimeControl "180+1"]
[Date "2022.03.29"]
[WhiteClock "0:00:01"]
[BlackClock "0:00:29"]

1. e4 {[%clk 0:03:00]}  c5 {[%clk 0:02:59]} 2. Nf3 {[%clk 0:02:59]}  e6 {[%clk 0:03:00]} 3. d4 {[%clk 0:02:57]}  cxd4 {[%clk 0:03:01]} 4. Nxd4 {[%clk 0:02:57]}  a6 {[%clk 0:03:01]} 5. Bd3 {[%clk 0:02:53]}  Bc5 {[%clk 0:03:01]} 6. Nb3 {[%clk 0:02:52]}  Be7 {[%clk 0:03:02]} 7. Qg4 {[%clk 0:02:52]}  g6 {[%clk 0:03:02]} 8. Qe2 {[%clk 0:02:53]}  Nc6 {[%clk 0:03:02]} 9. c4 {[%clk 0:02:48]}  d6 {[%clk 0:03:02]} 10. Nc3 {[%clk 0:02:48]}  Ne5 {[%clk 0:03:01]} 11. O-O {[%clk 0:02:44]}  g5 {[%clk 0:02:57]} 12. Nd4 {[%clk 0:02:30]}  g4 {[%clk 0:02:56]} 13. Bf4 {[%clk 0:02:24]}  Nf6 {[%clk 0:02:55]} 14. Bc2 {[%clk 0:02:12]}  Bd7 {[%clk 0:02:52]} 15. c5 {[%clk 0:02:09]}  Qc7 {[%clk 0:02:50]} 16. cxd6 {[%clk 0:01:43]}  Bxd6 {[%clk 0:02:51]} 17. Kh1 {[%clk 0:01:27]}  Ng6 {[%clk 0:02:28]} 18. Bxd6 {[%clk 0:01:12]}  Qxd6 {[%clk 0:02:29]} 19. Rad1 {[%clk 0:01:11]}  Qf4 {[%clk 0:02:29]} 20. Qc4 {[%clk 0:00:57]}  h5 {[%clk 0:02:08]} 21. Nde2 {[%clk 0:00:54]}  Qg5 {[%clk 0:02:01]} 22. Qd4 {[%clk 0:00:45]}  Bc6 {[%clk 0:01:54]} 23. Ba4 {[%clk 0:00:38]}  b5 {[%clk 0:01:51]} 24. Bb3 {[%clk 0:00:35]}  Ne5 {[%clk 0:01:50]} 25. Qd6 {[%clk 0:00:32]}  Rc8 {[%clk 0:01:47]} 26. Bxe6 {[%clk 0:00:30]}  Nfd7 {[%clk 0:01:26]} 27. Bf5 {[%clk 0:00:23]}  Qe7 {[%clk 0:01:24]} 28. Qd2 {[%clk 0:00:16]}  Rd8 {[%clk 0:01:22]} 29. Nf4 {[%clk 0:00:14]}  Nf6 {[%clk 0:01:18]} 30. Qe3 {[%clk 0:00:10]}  O-O {[%clk 0:01:15]} 31. Nxh5 {[%clk 0:00:05]}  Nxh5 {[%clk 0:01:10]} 32. Qh6 {[%clk 0:00:06]}  Nf6 {[%clk 0:01:04]} 33. f4 {[%clk 0:00:05]}  Ng6 {[%clk 0:01:00]} 34. e5 {[%clk 0:00:04]}  Rxd1 {[%clk 0:00:58]} 35. Nxd1 {[%clk 0:00:03]}  Rd8 {[%clk 0:00:33]} 36. Bxg6 {[%clk 0:00:02]}  fxg6 {[%clk 0:00:31]} 37. Qxg6+ {[%clk 0:00:02]}  Qg7 {[%clk 0:00:32]} 38. Qxg7+ {[%clk 0:00:02]}  Kxg7 {[%clk 0:00:33]} 39. exf6+ {[%clk 0:00:03]}  Kxf6 {[%clk 0:00:33]} 40. Ne3 {[%clk 0:00:02]}  Rd2 {[%clk 0:00:34]} 41. Nxg4+ {[%clk 0:00:02]}  Kf5 {[%clk 0:00:35]} 42. Ne3+ {[%clk 0:00:02]}  Ke4 {[%clk 0:00:35]} 43. Re1 {[%clk 0:00:03]}  Kxf4 {[%clk 0:00:33]} 44. b3 {[%clk 0:00:02]}  Rxa2 {[%clk 0:00:33]} 45. Kg1 {[%clk 0:00:03]}  Rb2 {[%clk 0:00:30]} 46. g3+ {[%clk 0:00:03]}  Kf3 {[%clk 0:00:29]} 47. Ng2 {[%clk 0:00:01]}  Rxg2+ {[%clk 0:00:29]} 0-1


[Site "https://www.chess.com"]